fUST/lending_fUST_20250206
["ID","MTS","AMOUNT","RATE_DAILY","PERIOD"]
[351808977,1738795846161,-583.95,0.00013698,2]
[351808979,1738795846171,-617.59084311,0.00013698,2]
[351808981,1738795846181,-500.0,0.00013698,2]
[351808984,1738795846194,-21599.4493118,0.00013699,2]
[351808986,1738795846204,-1548.734037,0.00013699,2]
[351808989,1738795846220,-150.87033597,0.00013699,2]
[351808991,1738795846236,-500.0,0.00013699,2]
[351808994,1738795846247,-500.0,0.00013699,2]
[351808995,1738795846257,-500.0,0.00013699,2]
[351808997,1738795846270,-500.0,0.00013699,2]
[351808999,1738795846281,-500.0,0.00013699,2]
[351809001,1738795846293,-500.0,0.00013699,2]
[351809003,1738795846304,-500.0,0.00013699,2]
[351809005,1738795846341,-500.0,0.00013699,2]
[351809006,1738795846402,-500.0,0.00013699,2]
[351809009,1738795846512,-500.0,0.00013699,2]
[351809010,1738795846622,-500.0,0.00013699,2]
[351809012,1738795846733,-500.0,0.00013699,2]
[351809014,1738795846853,-500.0,0.00013699,2]
[351809016,1738795846955,-500.0,0.00013699,2]
[351809018,1738795847057,-500.0,0.00013699,2]
[351809019,1738795847205,-500.0,0.00013699,2]
[351809020,1738795847292,-500.0,0.00013699,2]
[351809022,1738795847414,-500.0,0.00013699,2]
[351809024,1738795847515,-500.0,0.00013699,2]
[351809025,1738795847548,-500.0,0.00013699,2]
[351809026,1738795847558,-500.0,0.00013699,2]
[351809027,1738795847569,-500.0,0.00013699,2]
[351809028,1738795847580,-500.0,0.00013699,2]
[351809029,1738795847590,-500.0,0.00013699,2]
[351809030,1738795847601,-500.0,0.00013699,2]
[351809031,1738795847611,-500.0,0.00013699,2]
[351809032,1738795847622,-500.0,0.00013699,2]
[351809033,1738795847632,-500.0,0.00013699,2]
[351809034,1738795847642,-500.0,0.00013699,2]
[351809036,1738795847652,-500.0,0.00013699,2]
[351809038,1738795847663,-500.0,0.00013699,2]
[351809040,1738795847674,-500.0,0.00013699,2]
[351809042,1738795847684,-500.0,0.00013699,2]
[351809043,1738795847695,-500.0,0.00013699,2]
[351809045,1738795847706,-500.0,0.00013699,2]
[351809047,1738795847716,-500.0,0.00013699,2]
[351809048,1738795847726,-500.0,0.00013699,2]
[351809049,1738795847736,-500.0,0.00013699,2]
[351809050,1738795847746,-500.0,0.00013699,2]
[351809051,1738795847756,-598.35254952,0.00013699,2]
[351809052,1738795847767,-500.0,0.00013699,2]
[351809053,1738795847777,-500.0,0.00013699,2]
[351809054,1738795847789,-500.0,0.00013699,2]
[351809055,1738795847800,-500.0,0.00013699,2]
[351809056,1738795847809,-500.0,0.00013699,2]
[351809057,1738795847821,-500.0,0.00013699,2]
[351809058,1738795847831,-500.0,0.00013699,2]
[351809059,1738795847841,-500.0,0.00013699,2]
[351809060,1738795847851,-500.0,0.00013699,2]
[351809061,1738795847861,-500.0,0.00013699,2]
[351809062,1738795847872,-500.0,0.00013699,2]
[351809063,1738795847881,-500.0,0.00013699,2]
[351809064,1738795847892,-500.0,0.00013699,2]
[351809065,1738795847902,-500.0,0.00013699,2]
[351809066,1738795847912,-597.8578259,0.00013699,2]
[351809067,1738795847924,-1699.88299472,0.00013699,2]
[351809069,1738795847935,-1699.88299472,0.00013699,2]
[351809071,1738795847945,-1699.88299472,0.00013699,2]
[351809073,1738795847954,-1699.88299472,0.00013699,2]
[351809075,1738795847964,-1699.88299472,0.00013699,2]
[351809076,1738795847973,-1699.88299472,0.00013699,2]
[351809077,1738795847983,-1699.88299472,0.00013699,2]
[351809078,1738795847993,-1699.88299472,0.00013699,2]
[351809079,1738795848002,-1699.88299472,0.00013699,2]
[351809080,1738795848012,-1699.88299472,0.00013699,2]
[351809081,1738795848022,-1699.88299472,0.00013699,2]
[351809082,1738795848033,-1699.88299472,0.00013699,2]
[351809083,1738795848043,-1699.88299472,0.00013699,2]
[351809084,1738795848054,-1699.88299472,0.00013699,2]
[351809085,1738795848064,-1699.88299472,0.00013699,2]
[351809086,1738795848075,-1699.88299472,0.00013699,2]
[351809087,1738795848085,-1699.88299472,0.00013699,2]
[351809088,1738795848095,-1699.88299472,0.00013699,2]
[351809089,1738795848105,-1699.88299472,0.00013699,2]
[351809090,1738795848116,-1699.88299472,0.00013699,2]
[351809091,1738795848127,-1699.88299472,0.00013699,2]
[351809092,1738795848137,-1699.88299472,0.00013699,2]
[351809093,1738795848148,-1699.88299472,0.00013699,2]
[351809094,1738795848159,-1699.88299472,0.00013699,2]
[351809095,1738795848171,-1699.88299472,0.00013699,2]
[351809096,1738795848182,-1699.88299472,0.00013699,2]
[351809097,1738795848198,-1699.88299472,0.00013699,2]
[351809098,1738795848210,-1699.88299472,0.00013699,2]
[351809099,1738795848221,-1699.88299472,0.00013699,2]
[351809100,1738795848233,-1699.88299472,0.00013699,2]
[351809101,1738795848245,-1699.88299472,0.00013699,2]
[351809102,1738795848256,-1699.88299472,0.00013699,2]
[351809103,1738795848269,-1699.88299472,0.00013699,2]
[351809104,1738795848280,-1699.88299472,0.00013699,2]
[351809105,1738795848291,-1699.88299472,0.00013699,2]
[351809106,1738795848301,-1699.88299474,0.00013699,2]
[351809107,1738795848312,-1699.88299474,0.00013699,2]
[351809108,1738795848322,-1699.88299474,0.00013699,2]
[351809109,1738795848332,-1699.88299473,0.00013699,2]
[351809110,1738795848343,-151.0,0.000137,2]
[351809111,1738795848353,-151.0,0.000137,2]
[351809112,1738795848364,-151.0,0.000137,2]
[351809113,1738795848374,-151.0,0.000137,2]
[351809114,1738795848384,-165.17,0.000137,2]
[351809115,1738795848395,-165.17,0.000137,2]
[351809116,1738795848405,-165.17,0.000137,2]
[351809117,1738795848417,-165.17,0.000137,2]
[351809118,1738795848427,-165.17,0.000137,2]
[351809119,1738795848438,-165.17,0.000137,2]
[351809120,1738795848447,-165.17,0.000137,2]
[351809121,1738795848457,-1088.45187044,0.00013735,2]
[351809122,1738795848467,-151.0,0.000138,2]
[351809123,1738795848478,-151.0,0.000138,2]
[351809124,1738795848488,-151.0,0.000138,2]
[351809125,1738795848499,-151.0,0.000138,2]
[351809126,1738795848509,-151.0,0.000138,2]
[351809127,1738795848519,-151.0,0.000138,2]
[351809128,1738795848530,-151.0,0.000138,2]
[351809129,1738795848541,-23819.83163483,0.00013818,2]
[351809130,1738795848552,-11246.69653861,0.0001383,2]
[351809131,1738795848563,-391.0891689,0.00013832,2]
[351809132,1738795848573,-500.0,0.00013835,2]
[351809133,1738795848583,-540.39,0.00013835,2]
[351809134,1738795848594,-665.83,0.00013835,2]
[351809135,1738795848604,-573.65265683,0.00013835,2]
[351809136,1738795848614,-500.0,0.00013835,2]
[351809137,1738795848625,-500.0,0.00013835,2]
[351809138,1738795848637,-500.0,0.00013835,2]
[351809139,1738795848647,-692.17,0.00013835,2]
[351809140,1738795848657,-500.0,0.00013835,2]
[351809141,1738795848669,-500.0,0.00013835,2]
[351809142,1738795848680,-500.0,0.00013835,2]
[351809143,1738795848690,-500.0,0.00013835,2]
[351809144,1738795848700,-500.0,0.00013835,2]
[351809145,1738795848711,-500.0,0.00013835,2]
[351809146,1738795848722,-500.0,0.00013835,2]
[351809147,1738795848734,-662.12,0.00013835,2]
[351809148,1738795848745,-500.0,0.00013835,2]
[351809149,1738795848755,-500.0,0.00013835,2]
[351809150,1738795848766,-500.0,0.00013835,2]
[351809151,1738795848776,-500.0,0.00013835,2]
[351809152,1738795848790,-500.0,0.00013835,2]
[351809153,1738795848803,-500.0,0.00013835,2]
[351809154,1738795848816,-500.0,0.00013835,2]
[351809155,1738795848827,-500.0,0.00013835,2]
[351809156,1738795848839,-500.0,0.00013835,2]
[351809157,1738795848849,-617.9,0.00013835,2]
[351809158,1738795848860,-1421.59,0.00013835,2]
[351809159,1738795848871,-500.0,0.00013835,2]
[351809160,1738795848882,-500.0,0.00013835,2]
[351809161,1738795848893,-500.0,0.00013835,2]
[351809162,1738795848904,-507.76093265,0.00013835,2]
[351809163,1738795848915,-500.0,0.00013835,2]
[351809164,1738795848927,-500.0,0.00013835,2]
[351809165,1738795848937,-500.0,0.00013835,2]
[351809166,1738795848947,-524.48,0.00013835,2]
[351809167,1738795848958,-500.0,0.00013835,2]
[351809168,1738795848969,-500.0,0.00013835,2]
[351809169,1738795848979,-500.0,0.00013835,2]
[351809170,1738795848990,-835.93,0.00013835,2]
[351809171,1738795849000,-543.74,0.00013835,2]
[351809172,1738795849012,-500.0,0.00013835,2]
[351809173,1738795849024,-500.0,0.00013835,2]
[351809174,1738795849034,-501.12136402,0.00013835,2]
[351809175,1738795849046,-500.0,0.00013835,2]
[351809176,1738795849056,-500.0,0.00013835,2]
[351809177,1738795849068,-635.58214511,0.00013835,2]
[351809178,1738795849080,-500.0,0.00013835,2]
[351809179,1738795849091,-500.0,0.00013835,2]
[351809180,1738795849101,-820.13,0.00013835,2]
[351809181,1738795849112,-500.0,0.00013835,2]
[351809182,1738795849122,-500.0,0.00013835,2]
[351809183,1738795849133,-500.0,0.00013835,2]
[351809184,1738795849144,-500.0,0.00013835,2]
[351809185,1738795849155,-500.0,0.00013835,2]
[351809186,1738795849166,-500.0,0.00013835,2]
[351809187,1738795849177,-462.59792942,0.00013835,2]
[351809188,1738795849190,-539.74,0.00013835,2]
[351809189,1738795849200,-500.0,0.00013835,2]
[351809190,1738795849211,-500.0,0.00013835,2]
[351809191,1738795849220,-500.0,0.00013835,2]
[351809192,1738795849231,-500.0,0.00013835,2]
[351809193,1738795849241,-500.0,0.00013835,2]
[351809194,1738795849252,-500.0,0.00013835,2]
[351809195,1738795849262,-500.0,0.00013835,2]
[351809196,1738795849273,-500.0,0.00013835,2]
[351809197,1738795849284,-500.0,0.00013835,2]
[351809198,1738795849295,-500.0,0.00013835,2]
[351809199,1738795849306,-500.0,0.00013835,2]
[351809200,1738795849511,-500.0,0.00013835,2]
[351809201,1738795849522,-500.0,0.00013835,2]
[351809202,1738795849533,-500.0,0.00013835,2]
[351809203,1738795849543,-234.74096042,0.00013835,2]
[351809204,1738795849553,-500.0,0.00013835,2]
[351809205,1738795849564,-506.24240591,0.00013835,2]
[351809206,1738795849575,-1189.5,0.00013835,2]
[351809207,1738795849585,-500.0,0.00013835,2]
[351809208,1738795849596,-500.0,0.00013835,2]
[351809209,1738795849606,-486.50431685,0.00013835,2]
[351809210,1738795849616,-500.0,0.00013835,2]
[351809211,1738795849626,-500.0,0.00013835,2]
[351809212,1738795849635,-500.0,0.00013835,2]
[351809213,1738795849645,-500.0,0.00013835,2]
[351809214,1738795849655,-500.0,0.00013835,2]
[351809215,1738795849664,-500.0,0.00013835,2]
[351809216,1738795849673,-500.0,0.00013835,2]
[351809217,1738795849683,-500.0,0.00013835,2]
[351809218,1738795849692,-500.0,0.00013835,2]
[351809219,1738795849702,-500.0,0.00013835,2]
[351809220,1738795849712,-500.0,0.00013835,2]
[351809221,1738795849722,-806.75,0.00013835,2]
[351809222,1738795849732,-590.1,0.00013835,2]
[351809223,1738795849741,-626.29,0.00013835,2]
[351809224,1738795849751,-943.35,0.00013835,2]
[351809225,1738795849761,-500.0,0.00013835,2]
[351809226,1738795849771,-682.04,0.00013835,2]
[351809227,1738795849780,-500.0,0.00013835,2]
[351809228,1738795849790,-500.0,0.00013835,2]
[351809229,1738795849800,-500.0,0.00013835,2]
[351809230,1738795849809,-500.0,0.00013835,2]
[351809231,1738795849819,-1468.09,0.00013835,2]
[351809232,1738795849828,-1242.07,0.00013835,2]
[351809233,1738795849838,-500.0,0.00013835,2]
[351809234,1738795849848,-1012.88,0.00013835,2]
[351809235,1738795849857,-500.0,0.00013835,2]
[351809236,1738795849867,-500.0,0.00013835,2]
[351809237,1738795849876,-2306.41,0.00013835,2]
[351809238,1738795849886,-500.0,0.00013835,2]
[351809239,1738795849896,-1562.88,0.00013835,2]
[351809240,1738795849905,-569.29,0.00013835,2]
[351809241,1738795849915,-531.61,0.00013835,2]
[351809242,1738795849925,-500.0,0.00013835,2]
[351809243,1738795849935,-899.07,0.00013835,2]
[351809244,1738795849944,-500.0,0.00013835,2]
[351809245,1738795849954,-500.0,0.00013835,2]
[351809246,1738795849963,-1852.2,0.00013835,2]
[351809247,1738795849973,-500.0,0.00013835,2]
[351809248,1738795849983,-755.55,0.00013835,2]
[351809249,1738795849993,-585.91,0.00013835,2]
[351809250,1738795850002,-758.78,0.00013835,2]
[351809251,1738795850011,-1000.0,0.00013835,2]
[351809252,1738795850021,-624.42513372,0.00013835,2]
[351809253,1738795850030,-500.0,0.00013835,2]
[351809254,1738795850040,-500.0,0.00013835,2]
[351809255,1738795850049,-500.0,0.00013835,2]
[351809256,1738795850059,-500.0,0.00013835,2]
[351809257,1738795850069,-790.52,0.00013835,2]
[351809258,1738795850078,-667.03,0.00013835,2]
[351809259,1738795850089,-500.0,0.00013835,2]
[351809260,1738795850098,-2153.06,0.00013835,2]
[351809261,1738795850108,-500.0,0.00013835,2]
[351809262,1738795850117,-1442.48,0.00013835,2]
[351809263,1738795850127,-873.59,0.00013835,2]
[351809264,1738795850137,-1465.44,0.00013835,2]
[351809265,1738795850148,-500.0,0.00013835,2]
[351809266,1738795850158,-500.0,0.00013835,2]
[351809267,1738795850168,-500.0,0.00013835,2]
[351809268,1738795850177,-500.0,0.00013835,2]
[351809269,1738795850191,-500.0,0.00013835,2]
[351809270,1738795850201,-607.21,0.00013835,2]
[351809271,1738795850211,-500.0,0.00013835,2]
[351809272,1738795850221,-1394.73,0.00013835,2]
[351809273,1738795850231,-1218.7,0.00013835,2]
[351809274,1738795850241,-500.0,0.00013835,2]
[351809275,1738795850250,-500.0,0.00013835,2]
[351809276,1738795850260,-188.0,0.00013835,2]
[351809277,1738795850270,-693.51,0.00013835,2]
[351809278,1738795850279,-500.0,0.00013835,2]
[351809279,1738795850289,-500.0,0.00013835,2]
[351809280,1738795850299,-500.0,0.00013835,2]
[351809281,1738795850309,-352.54752496,0.00013835,2]
[351809282,1738795850319,-500.0,0.00013835,2]
[351809283,1738795850329,-500.0,0.00013835,2]
[351809284,1738795850339,-500.0,0.00013835,2]
[351809285,1738795850349,-500.0,0.00013835,2]
[351809286,1738795850359,-1015.04,0.00013835,2]
[351809287,1738795850368,-2276.48,0.00013835,2]
[351809288,1738795850378,-500.0,0.00013835,2]
[351809289,1738795850388,-500.0,0.00013835,2]
[351809290,1738795850398,-844.24,0.00013835,2]
[351809291,1738795850408,-500.0,0.00013835,2]
[351809292,1738795850418,-500.0,0.00013835,2]
[351809293,1738795850428,-827.88,0.00013835,2]
[351809294,1738795850437,-500.0,0.00013835,2]
[351809295,1738795850448,-500.0,0.00013835,2]
[351809296,1738795850457,-500.0,0.00013835,2]
[351809297,1738795850467,-583.45,0.00013835,2]
[351809298,1738795850476,-500.0,0.00013835,2]
[351809299,1738795850485,-1159.66,0.00013835,2]
[351809300,1738795850495,-500.0,0.00013835,2]
[351809301,1738795850505,-500.0,0.00013835,2]
[351809302,1738795850515,-500.0,0.00013835,2]
[351809303,1738795850525,-500.0,0.00013835,2]
[351809304,1738795850535,-500.0,0.00013835,2]
[351809305,1738795850545,-500.0,0.00013835,2]
[351809306,1738795850555,-1657.57,0.00013835,2]
[351809307,1738795850564,-500.0,0.00013835,2]
[351809308,1738795850574,-500.0,0.00013835,2]
[351809309,1738795850583,-500.0,0.00013835,2]
[351809310,1738795850593,-500.0,0.00013835,2]
[351809311,1738795850603,-515.49596102,0.00013835,2]
[351809312,1738795850612,-500.0,0.00013835,2]
[351809313,1738795850623,-1385.02,0.00013835,2]
[351809314,1738795850633,-526.45,0.00013835,2]
[351809315,1738795850643,-500.0,0.00013835,2]
[351809316,1738795850654,-3523.39,0.00013835,2]
[351809317,1738795850663,-872.65,0.00013835,2]
[351809318,1738795850674,-993.57,0.00013835,2]
[351809319,1738795850684,-1485.5,0.00013835,2]
[351809320,1738795850694,-977.18,0.00013835,2]
[351809321,1738795850704,-500.0,0.00013835,2]
[351809322,1738795850714,-716.05,0.00013835,2]
[351809323,1738795850723,-500.0,0.00013835,2]
[351809324,1738795850733,-500.0,0.00013835,2]
[351809325,1738795850743,-500.0,0.00013835,2]
[351809326,1738795850752,-178.82496126,0.00013835,2]
[351809327,1738795850763,-465.4568436,0.00013835,2]
[351809328,1738795850772,-3621.24,0.00013835,2]
[351809329,1738795850782,-512.77007859,0.00013835,2]
[351809330,1738795850792,-506.74957362,0.00013835,2]
[351809331,1738795850802,-500.0,0.00013835,2]
[351809332,1738795850811,-1233.3,0.00013835,2]
[351809333,1738795850821,-500.0,0.00013835,2]
[351809334,1738795850830,-500.0,0.00013835,2]
[351809335,1738795850840,-500.0,0.00013835,2]
[351809336,1738795850850,-500.0,0.00013835,2]
[351809337,1738795850859,-500.0,0.00013835,2]
[351809338,1738795850869,-500.0,0.00013835,2]
[351809339,1738795850878,-500.0,0.00013835,2]
[351809340,1738795850888,-974.87,0.00013835,2]
[351809341,1738795850897,-500.0,0.00013835,2]
[351809342,1738795850907,-500.0,0.00013835,2]
[351809343,1738795850917,-560.92,0.00013835,2]
[351809344,1738795850927,-519.94,0.00013835,2]
[351809345,1738795850936,-500.0,0.00013835,2]
[351809346,1738795850946,-676.03,0.00013835,2]
[351809347,1738795850955,-2209.56,0.00013835,2]
[351809348,1738795850965,-500.0,0.00013835,2]
[351809349,1738795850974,-866.79,0.00013835,2]
[351809350,1738795850984,-686.98,0.00013835,2]
[351809351,1738795850994,-500.0,0.00013835,2]
[351809352,1738795851003,-500.0,0.00013835,2]
[351809353,1738795851013,-840.64,0.00013835,2]
[351809354,1738795851022,-949.72,0.00013835,2]
[351809355,1738795851032,-1784.98,0.00013835,2]
[351809356,1738795851041,-516.93897456,0.00013835,2]
[351809357,1738795851051,-500.0,0.00013835,2]
[351809358,1738795851060,-500.0,0.00013835,2]
[351809359,1738795851070,-507.68,0.00013835,2]
[351809360,1738795851081,-500.0,0.00013835,2]
[351809361,1738795851091,-500.0,0.00013835,2]
[351809362,1738795851102,-500.0,0.00013835,2]
[351809363,1738795851111,-1212.77,0.00013835,2]
[351809364,1738795851121,-500.0,0.00013835,2]
[351809365,1738795851130,-4236.67,0.00013835,2]
[351809366,1738795851140,-1831.28,0.00013835,2]
[351809367,1738795851149,-648.7,0.00013835,2]
[351809368,1738795851159,-500.0,0.00013835,2]
[351809369,1738795851169,-500.0,0.00013835,2]
[351809370,1738795851179,-562.63,0.00013835,2]
[351809371,1738795851190,-546.9,0.00013835,2]
[351809372,1738795851201,-500.0,0.00013835,2]
[351809373,1738795851211,-500.0,0.00013835,2]
[351809374,1738795851221,-500.0,0.00013835,2]
[351809375,1738795851232,-500.0,0.00013835,2]
[351809376,1738795851241,-869.21,0.00013835,2]
[351809377,1738795851251,-714.97,0.00013835,2]
[351809378,1738795851266,-1496.41,0.00013835,2]
[351809379,1738795851276,-500.0,0.00013835,2]
[351809380,1738795851286,-1545.16,0.00013835,2]
[351809381,1738795851295,-500.0,0.00013835,2]
[351809382,1738795851304,-589.5,0.00013835,2]
[351809383,1738795851315,-500.0,0.00013835,2]
[351809384,1738795851324,-1010.79,0.00013835,2]
[351809385,1738795851334,-500.0,0.00013835,2]
[351809386,1738795851343,-500.0,0.00013835,2]
[351809387,1738795851353,-500.0,0.00013835,2]
[351809388,1738795851363,-500.0,0.00013835,2]
[351809389,1738795851372,-749.49,0.00013835,2]
[351809390,1738795851384,-500.0,0.00013835,2]
[351809391,1738795851394,-500.0,0.00013835,2]
[351809392,1738795851404,-500.0,0.00013835,2]
[351809393,1738795851413,-500.0,0.00013835,2]
[351809394,1738795851423,-727.71,0.00013835,2]
[351809395,1738795851433,-500.0,0.00013835,2]
[351809396,1738795851443,-500.0,0.00013835,2]
[351809397,1738795851452,-947.61,0.00013835,2]
[351809398,1738795851462,-2962.57,0.00013835,2]
[351809399,1738795851472,-962.32,0.00013835,2]
[351809400,1738795851482,-500.0,0.00013835,2]
[351809401,1738795851491,-500.0,0.00013835,2]
[351809402,1738795851501,-500.0,0.00013835,2]
[351809403,1738795851511,-500.0,0.00013835,2]
[351809404,1738795851521,-500.0,0.00013835,2]
[351809405,1738795851530,-500.0,0.00013835,2]
[351809406,1738795851540,-500.0,0.00013835,2]
[351809407,1738795851550,-34340.84,0.00013835,2]
[351809408,1738795851560,-3315.18,0.00013835,2]
[351809409,1738795851570,-725.46,0.00013835,2]
[351809410,1738795851579,-1067.31,0.00013835,2]
[351809411,1738795851589,-500.0,0.00013835,2]
[351809412,1738795851599,-500.0,0.00013835,2]
[351809413,1738795851608,-5216.47,0.00013835,2]
[351809414,1738795851618,-500.0,0.00013835,2]
[351809415,1738795851629,-500.0,0.00013835,2]
[351809416,1738795851639,-2772.52,0.00013835,2]
[351809417,1738795851649,-500.0,0.00013835,2]
[351809418,1738795851658,-500.0,0.00013835,2]
[351809419,1738795851668,-500.0,0.00013835,2]
[351809420,1738795851678,-500.0,0.00013835,2]
[351809421,1738795851688,-5962.74,0.00013835,2]
[351809422,1738795851698,-500.0,0.00013835,2]
[351809423,1738795851708,-2377.27,0.00013835,2]
[351809424,1738795851717,-503.09,0.00013835,2]
[351809425,1738795851727,-1084.77,0.00013835,2]
[351809426,1738795851737,-500.0,0.00013835,2]
[351809427,1738795851747,-2267.95,0.00013835,2]
[351809428,1738795851757,-500.0,0.00013835,2]
[351809429,1738795851767,-542.56216063,0.00013835,2]
[351809430,1738795851776,-500.0,0.00013835,2]
[351809431,1738795851786,-500.0,0.00013835,2]
[351809432,1738795851796,-831.13,0.00013835,2]
[351809433,1738795851806,-500.0,0.00013835,2]
[351809434,1738795851815,-2571.74,0.00013835,2]
[351809435,1738795851825,-500.0,0.00013835,2]
[351809436,1738795851834,-850.98,0.00013835,2]
[351809437,1738795851844,-500.0,0.00013835,2]
[351809438,1738795851854,-1020.32,0.00013835,2]
[351809439,1738795851864,-500.0,0.00013835,2]
[351809440,1738795851874,-193.52121766,0.00013835,2]
[351809441,1738795851884,-500.0,0.00013835,2]
[351809442,1738795851894,-1577.99,0.00013835,2]
[351809443,1738795851904,-564.17792908,0.00013835,2]
[351809444,1738795851913,-500.0,0.00013835,2]
[351809445,1738795851924,-500.0,0.00013835,2]
[351809446,1738795851933,-514.52,0.00013835,2]
[351809447,1738795851943,-500.0,0.00013835,2]
[351809448,1738795851952,-500.0,0.00013835,2]
[351809449,1738795851962,-500.0,0.00013835,2]
[351809450,1738795851973,-500.0,0.00013835,2]
[351809451,1738795851983,-505.66110072,0.00013835,2]
[351809452,1738795851994,-500.0,0.00013835,2]
[351809453,1738795852004,-685.99,0.00013835,2]
[351809454,1738795852013,-510.89,0.00013835,2]
[351809455,1738795852023,-500.0,0.00013835,2]
[351809456,1738795852033,-500.0,0.00013835,2]
[351809457,1738795852043,-500.0,0.00013835,2]
[351809458,1738795852052,-821.54,0.00013835,2]
[351809459,1738795852061,-6067.63,0.00013835,2]
[351809460,1738795852070,-699.26,0.00013835,2]
[351809461,1738795852081,-917.7,0.00013835,2]
[351809462,1738795852090,-500.0,0.00013835,2]
[351809463,1738795852100,-1045.55,0.00013835,2]
[351809464,1738795852218,-7388.57,0.00013835,2]
[351809465,1738795852244,-34646.8,0.00013835,2]
[351809466,1738795852254,-500.0,0.00013835,2]
[351809467,1738795852263,-11072.57,0.00013835,2]
[351809468,1738795852274,-500.0,0.00013835,2]
[351809469,1738795852284,-500.0,0.00013835,2]
[351809470,1738795852294,-500.0,0.00013835,2]
[351809471,1738795852304,-2628.67,0.00013835,2]
[351809472,1738795852313,-500.0,0.00013835,2]
[351809473,1738795852323,-500.0,0.00013835,2]
[351809474,1738795852332,-500.0,0.00013835,2]
[351809475,1738795852341,-1492.49,0.00013835,2]
[351809476,1738795852351,-500.0,0.00013835,2]
[351809477,1738795852361,-500.0,0.00013835,2]
[351809478,1738795852371,-500.0,0.00013835,2]
[351809479,1738795852381,-2878.7,0.00013835,2]
[351809480,1738795852391,-500.0,0.00013835,2]
[351809481,1738795852400,-533.74,0.00013835,2]
[351809482,1738795852408,-500.0,0.00013835,2]
[351809483,1738795852418,-500.0,0.00013835,2]
[351809484,1738795852428,-500.0,0.00013835,2]
[351809485,1738795852438,-1184.65,0.00013835,2]
[351809486,1738795852448,-542.17,0.00013835,2]
[351809487,1738795852457,-500.0,0.00013835,2]
[351809488,1738795852467,-500.0,0.00013835,2]
[351809489,1738795852477,-500.0,0.00013835,2]
[351809490,1738795852486,-939.6,0.00013835,2]
[351809491,1738795852496,-564.79,0.00013835,2]
[351809492,1738795852506,-500.0,0.00013835,2]
[351809493,1738795852515,-500.0,0.00013835,2]
[351809494,1738795852524,-500.0,0.00013835,2]
[351809495,1738795852534,-500.0,0.00013835,2]
[351809496,1738795852543,-4691.51,0.00013835,2]
[351809497,1738795852553,-500.0,0.00013835,2]
[351809498,1738795852563,-500.0,0.00013835,2]
[351809499,1738795852572,-500.0,0.00013835,2]
[351809500,1738795852582,-2566.53,0.00013835,2]
[351809501,1738795852591,-500.0,0.00013835,2]
[351809502,1738795852601,-500.0,0.00013835,2]
[351809503,1738795852611,-2458.61,0.00013835,2]
[351809504,1738795852622,-500.0,0.00013835,2]
[351809505,1738795852631,-500.0,0.00013835,2]
[351809506,1738795852642,-643.43,0.00013835,2]
[351809507,1738795852652,-500.0,0.00013835,2]
[351809508,1738795852661,-500.0,0.00013835,2]
[351809509,1738795852672,-631.90590006,0.00013835,2]